fUSD/lending_fUSD_20250208
["ID","MTS","AMOUNT","RATE_DAILY","PERIOD"]
[352307721,1739034651328,-1106.17,0.00010674,2]
[352307722,1739034651337,-1648.5,0.00010674,2]
[352307723,1739034651346,-500.0,0.00010674,2]
[352307724,1739034651356,-570.33,0.00010674,2]
[352307725,1739034651365,-500.0,0.00010674,2]
[352307726,1739034651375,-577.84,0.00010674,2]
[352307727,1739034651384,-1156.58,0.00010674,2]
[352307728,1739034651393,-500.0,0.00010674,2]
[352307729,1739034651402,-500.0,0.00010674,2]
[352307730,1739034651412,-699.73,0.00010674,2]
[352307731,1739034651421,-500.0,0.00010674,2]
[352307732,1739034651432,-1294.37,0.00010674,2]
[352307733,1739034651442,-1553.19,0.00010674,2]
[352307734,1739034651451,-500.0,0.00010674,2]
[352307735,1739034651461,-757.06,0.00010674,2]
[352307736,1739034651472,-500.0,0.00010674,2]
[352307737,1739034651481,-500.0,0.00010674,2]
[352307738,1739034651491,-500.0,0.00010674,2]
[352307739,1739034651501,-500.0,0.00010674,2]
[352307740,1739034651511,-843.48,0.00010674,2]
[352307741,1739034651520,-500.0,0.00010674,2]
[352307742,1739034651530,-1208.54,0.00010674,2]
[352307743,1739034651539,-500.0,0.00010674,2]
[352307744,1739034651549,-500.0,0.00010674,2]
[352307745,1739034651558,-881.9,0.00010674,2]
[352307746,1739034651568,-500.0,0.00010674,2]
[352307747,1739034651577,-500.0,0.00010674,2]
[352307748,1739034651590,-500.0,0.00010674,2]
[352307749,1739034651600,-4103.43,0.00010674,2]
[352307750,1739034651610,-737.99,0.00010674,2]
[352307751,1739034651619,-500.0,0.00010674,2]
[352307752,1739034651630,-736.91,0.00010674,2]
[352307753,1739034651640,-500.0,0.00010674,2]
[352307754,1739034651649,-500.0,0.00010674,2]
[352307755,1739034651659,-500.0,0.00010675,2]
[352307756,1739034651670,-813.83,0.00010675,2]
[352307757,1739034651680,-500.0,0.00010675,2]
[352307758,1739034651690,-776.99,0.00010675,2]
[352307759,1739034651699,-835.05,0.00010675,2]
[352307760,1739034651708,-665.42,0.00010675,2]
[352307761,1739034651720,-500.0,0.00010675,2]
[352307762,1739034651729,-638.54,0.00010675,2]
[352307763,1739034651738,-530.8,0.00010675,2]
[352307764,1739034651747,-656.52,0.00010675,2]
[352307765,1739034651757,-500.0,0.00010675,2]
[352307766,1739034651767,-500.0,0.00010675,2]
[352307767,1739034651776,-500.0,0.00010675,2]
[352307768,1739034651786,-500.0,0.00010675,2]
[352307769,1739034651795,-500.0,0.00010675,2]
[352307770,1739034651805,-500.0,0.00010675,2]
[352307771,1739034651814,-500.0,0.00010675,2]
[352307772,1739034651824,-500.0,0.00010675,2]
[352307773,1739034651834,-500.0,0.00010675,2]
[352307774,1739034651844,-500.0,0.00010675,2]
[352307775,1739034651853,-570.84,0.00010675,2]
[352307776,1739034651863,-500.0,0.00010675,2]
[352307777,1739034651873,-500.0,0.00010675,2]
[352307778,1739034651883,-500.0,0.00010675,2]
[352307779,1739034651892,-630.8,0.00010675,2]
[352307780,1739034651903,-864.47,0.00010675,2]
[352307781,1739034651914,-976.05,0.00010675,2]
[352307782,1739034651924,-500.0,0.00010675,2]
[352307783,1739034651934,-607.43,0.00010675,2]
[352307784,1739034651944,-547.28,0.00010675,2]
[352307785,1739034652114,-500.0,0.00010675,2]
[352307786,1739034652148,-500.0,0.00010675,2]
[352307787,1739034652157,-500.0,0.00010675,2]
[352307788,1739034652166,-1170.62,0.00010675,2]
[352307789,1739034652177,-906.33,0.00010675,2]
[352307790,1739034652186,-500.0,0.00010675,2]
[352307791,1739034652196,-1191.95,0.00010675,2]
[352307792,1739034652205,-1143.84,0.00010675,2]
[352307793,1739034652217,-500.0,0.00010675,2]
[352307794,1739034652226,-530.04,0.00010675,2]
[352307795,1739034652236,-500.0,0.00010675,2]
[352307796,1739034652245,-500.0,0.00010675,2]
[352307797,1739034652254,-500.0,0.00010675,2]
[352307798,1739034652264,-500.0,0.00010675,2]
[352307799,1739034652273,-722.93,0.00010675,2]
[352307800,1739034652282,-500.0,0.00010675,2]
[352307801,1739034652292,-500.0,0.00010675,2]
[352307802,1739034652301,-581.3,0.00010675,2]
[352307803,1739034652310,-815.1,0.00010675,2]
[352307804,1739034652320,-500.0,0.00010675,2]
[352307805,1739034652330,-540.52,0.00010675,2]
[352307806,1739034652338,-619.94,0.00010675,2]
[352307807,1739034652348,-1888.42,0.00010675,2]
[352307808,1739034652358,-500.0,0.00010675,2]
[352307809,1739034652367,-2896.24943653,0.00010675,2]
[352307810,1739034652384,-570.90056347,0.00010675,2]
[352307811,1739034652393,-659.8,0.00010675,2]
[352307812,1739034652402,-500.0,0.00010675,2]
[352307813,1739034652412,-628.27,0.00010675,2]
[352307814,1739034652422,-163.8,0.00010675,2]
[352307815,1739034652431,-733.36,0.00010675,2]
[352307816,1739034652440,-588.47,0.00010675,2]
[352307817,1739034652451,-842.89,0.00010675,2]
[352307818,1739034652461,-566.1,0.00010675,2]
[352307819,1739034652471,-1217.46,0.00010675,2]
[352307820,1739034652481,-724.53,0.00010675,2]
[352307821,1739034652490,-500.0,0.00010675,2]
[352307822,1739034652499,-500.0,0.00010675,2]
[352307823,1739034652508,-1504.17,0.00010675,2]
[352307824,1739034652519,-500.0,0.00010675,2]
[352307825,1739034652528,-1714.88,0.00010675,2]
[352307826,1739034652537,-500.0,0.00010675,2]
[352307827,1739034652548,-1000.0,0.00010675,2]
[352307828,1739034652557,-1087.8,0.00010675,2]
[352307829,1739034652567,-500.0,0.00010675,2]
[352307830,1739034652576,-591.59,0.00010675,2]
[352307831,1739034652589,-1679.97,0.00010675,2]
[352307832,1739034652598,-500.0,0.00010675,2]
[352307833,1739034652609,-585.74,0.00010675,2]
[352307834,1739034652619,-1623.01,0.00010675,2]
[352307835,1739034652632,-500.0,0.00010676,2]
[352307836,1739034652642,-500.0,0.00010676,2]
[352307837,1739034652651,-500.0,0.00010676,2]
[352307838,1739034652661,-192.83884007,0.00010676,2]
[352307839,1739034652683,-307.16115993,0.00010676,2]
[352307840,1739034652692,-500.0,0.00010676,2]
[352307841,1739034652702,-500.0,0.00010676,2]
[352307842,1739034652711,-500.0,0.00010676,2]
[352307843,1739034652721,-500.0,0.00010676,2]
[352307844,1739034652731,-500.0,0.00010676,2]
[352307845,1739034652740,-500.0,0.00010676,2]
[352307846,1739034652749,-500.0,0.00010676,2]
[352307847,1739034652760,-500.0,0.00010676,2]
[352307848,1739034652768,-500.0,0.00010676,2]
[352307849,1739034652778,-500.0,0.00010676,2]
[352307850,1739034652787,-500.0,0.00010676,2]
[352307851,1739034652796,-500.0,0.00010676,2]
[352307852,1739034652805,-500.0,0.00010676,2]
[352307853,1739034652815,-500.0,0.00010676,2]
[352307854,1739034652824,-500.0,0.00010676,2]
[352307855,1739034652834,-500.0,0.00010676,2]
[352307856,1739034652843,-500.0,0.00010676,2]
[352307857,1739034652852,-500.0,0.00010676,2]
[352307858,1739034652862,-192.83884007,0.00010676,2]
[352307859,1739034701953,500.0,9.778e-05,2]
[352307860,1739034719423,1574.23,9.854e-05,2]
[352307862,1739034769949,176.61,9.757e-05,2]
[352307863,1739034869563,23900.0,9.763e-05,2]
[352307865,1739034927751,1844.5748,8.836e-05,2]
[352307866,1739034941219,28078.464,8.836e-05,2]
[352307870,1739035174639,-324.22351497,0.00020807,120]
[352307871,1739035174665,-171.20987586,0.00020807,91]
[352307872,1739035174693,-887624.17063579,0.00020807,60]
[352307873,1739035174717,-335.490986,0.00020807,120]
[352307874,1739035174742,-104571.96075172,0.00020807,60]
[352307875,1739035174769,-167.79230354,0.00020807,60]
[352307876,1739035174795,-761.0495576,0.00020807,120]
[352307877,1739035174819,-43893.89505689,0.00020807,60]
[352307878,1739035174844,-274923.5632802,0.00020807,120]
[352307879,1739035174869,-5000.0,0.00020807,120]
[352307880,1739035174893,-10000.0,0.00020807,60]
[352307881,1739035174917,-202.087831,0.00020807,120]
[352307882,1739035174943,-305780.67114078,0.00020807,120]
[352307883,1739035174967,-499.99999901,0.00020807,120]
[352307884,1739035174992,-153.0,0.00020807,120]
[352307885,1739035175016,-151.51721389,0.00020807,120]
[352307886,1739035175040,-152.27050706,0.00020807,120]
[352307887,1739035175064,-4066.03877024,0.00020807,120]
[352307888,1739035175088,-2874.20649404,0.00020807,120]
[352307889,1739035175112,-150.0,0.00020807,120]
[352307890,1739035175137,-12980.53746245,0.00020807,60]
[352307891,1739035175162,-1483.63744155,0.00020807,120]
[352307892,1739035175185,-217.88965937,0.00020807,120]
[352307893,1739035175209,-553.54171953,0.00020807,120]
[352307894,1739035175232,-1720.14426561,0.00020807,120]
[352307895,1739035175255,-164.87412633,0.00020807,120]
[352307896,1739035175279,-245.53508788,0.00020807,120]
[352307897,1739035175304,-1089.41,0.00020807,120]
[352307898,1739035175329,-1017.54185836,0.00020807,120]
[352307899,1739035175353,-10000.0,0.00020807,60]
[352307900,1739035226994,1126.62,8.219e-05,2]
[352307901,1739035265210,662.74,9.426e-05,2]
[352307902,1739035281440,1000.0,9.423e-05,2]
[352307903,1739035358509,3000.0,8.766e-05,2]
[352307904,1739035374298,174.36,9.419e-05,2]
[352307905,1739035411489,165.59,9.419e-05,2]
[352307906,1739035496087,200.0,9.428e-05,2]
[352307907,1739035505006,150.0,9.888e-05,2]
[352307908,1739035507033,150.0,9.888e-05,2]
[352307909,1739035508172,322870.69,0.0001,2]
[352307910,1739035508201,328004.06221143,0.0001,2]
[352307911,1739035511403,278.09500878,9.888e-05,2]
[352307915,1739035622761,59885.00981871,9.37e-05,2]
[352307916,1739035622784,284935.98961088,9.37e-05,2]
[352307917,1739035650553,500.0,0.0002,120]
[352307918,1739035650808,189.8,0.0002,120]
[352307919,1739035678724,715064.01038912,0.0001,2]
[352307920,1739035678747,873908.06750727,0.0001,2]
[352307935,1739035830044,176.61,9.467e-05,2]
[352307943,1739035832201,-500.0,0.00010085,2]
[352307945,1739035832212,-3000.0,0.00010136,2]
[352307947,1739035832221,-156.07,0.00010137,2]
[352307949,1739035832232,-500.0,0.00010143,2]
[352307950,1739035832242,-727.43708961,0.0001027,2]
[352307951,1739035832251,-150.0,0.00010371,2]
[352307952,1739035832261,-150.0,0.000104,2]
[352307953,1739035832270,-150.0,0.000104,2]
[352307954,1739035832280,-150.0,0.00010405,2]
[352307955,1739035832289,-150.0,0.00010407,2]
[352307956,1739035832299,-150.0,0.0001041,2]
[352307957,1739035832309,-150.0,0.00010412,2]
[352307958,1739035832318,-150.0,0.00010413,2]
[352307959,1739035832328,-150.0,0.00010415,2]
[352307960,1739035832337,-150.0,0.00010416,2]
[352307961,1739035832347,-150.0,0.00010418,2]
[352307962,1739035832356,-150.0,0.00010418,2]
[352307963,1739035832366,-7524.86212987,0.00010419,2]
[352307964,1739035832376,-150.0,0.00010424,2]
[352307965,1739035832392,-150.0,0.00010431,2]
[352307966,1739035832401,-150.0,0.00010431,2]
[352307967,1739035832410,-150.0,0.00010431,2]
[352307968,1739035832420,-150.0,0.00010431,2]
[352307969,1739035832430,-150.0,0.00010433,2]
[352307970,1739035832440,-150.0,0.00010438,2]
[352307971,1739035832450,-1000.0,0.00010442,2]
[352307972,1739035832459,-150.0,0.00010444,2]
[352307973,1739035832469,-150.0,0.00010444,2]
[352307974,1739035832480,-150.0,0.00010445,2]
[352307975,1739035832489,-1126.62,0.00010446,2]
[352307976,1739035832498,-150.0,0.00010448,2]
[352307977,1739035832508,-150.0,0.0001045,2]
[352307978,1739035832517,-150.0,0.0001045,2]
[352307979,1739035832526,-150.0,0.00010451,2]
[352307980,1739035832535,-150.0,0.00010452,2]
[352307981,1739035832545,-1000.0,0.00010455,2]
[352307982,1739035832554,-150.0,0.00010457,2]
[352307983,1739035832564,-150.0,0.00010459,2]
[352307984,1739035832573,-150.93118586,0.00010462,2]
[352307985,1739035832583,-150.0,0.00010465,2]
[352307986,1739035832592,-150.0,0.00010465,2]
[352307987,1739035832601,-150.0,0.00010473,2]
[352307988,1739035832611,-11971.19496354,0.00010475,2]
[352307989,1739035832620,-150.0,0.00010476,2]
[352307990,1739035832630,-150.0,0.00010477,2]
[352307991,1739035832640,-150.0,0.0001048,2]
[352307992,1739035832650,-188.05608793,0.00010483,2]
[352307993,1739035832659,-150.0,0.00010484,2]
[352307994,1739035832668,-150.0,0.00010484,2]
[352307995,1739035832679,-150.0,0.00010484,2]
[352307996,1739035832688,-150.0,0.00010489,2]
[352307997,1739035832698,-150.0,0.00010491,2]
[352307998,1739035832707,-150.0,0.00010492,2]
[352307999,1739035832717,-150.0,0.00010493,2]
[352308000,1739035832732,-150.0,0.00010495,2]
[352308001,1739035832742,-1139.22269716,0.000105,2]
[352308002,1739035832753,-150.0,0.00010508,2]
[352308003,1739035832762,-150.0,0.00010511,2]
[352308004,1739035832771,-150.0,0.00010514,2]
[352308005,1739035832780,-150.0,0.00010519,2]
[352308006,1739035832790,-150.0,0.0001052,2]
[352308007,1739035832800,-292.1512776,0.00010522,2]
[352308008,1739035832809,-150.0,0.00010523,2]
[352308009,1739035832818,-150.0,0.00010527,2]
[352308010,1739035832827,-150.0,0.00010528,2]
[352308011,1739035832837,-150.0,0.0001053,2]
[352308012,1739035832847,-500.0,0.00010536,2]
[352308013,1739035832856,-712.1,0.00010536,2]
[352308014,1739035832866,-500.0,0.00010536,2]
[352308015,1739035832875,-500.0,0.00010536,2]
[352308016,1739035832885,-679.87,0.00010536,2]
[352308017,1739035832895,-582.24,0.00010536,2]
[352308018,1739035832905,-500.0,0.00010536,2]
[352308019,1739035832914,-558.73,0.00010536,2]
[352308020,1739035832925,-578.43,0.00010536,2]
[352308021,1739035832934,-500.0,0.00010536,2]
[352308022,1739035832944,-500.0,0.00010536,2]
[352308023,1739035832954,-504.79,0.00010536,2]
[352308024,1739035832964,-574.46,0.00010536,2]
[352308025,1739035832980,-625.61,0.00010536,2]
[352308026,1739035832990,-500.0,0.00010536,2]
[352308027,1739035832999,-500.0,0.00010536,2]
[352308028,1739035833009,-500.0,0.00010536,2]
[352308029,1739035833018,-262.31435019,0.00010536,2]
[352308030,1739035833031,-237.68564981,0.00010536,2]
[352308031,1739035833040,-500.0,0.00010536,2]
[352308032,1739035833051,-551.95,0.00010536,2]
[352308033,1739035833060,-578.61546321,0.00010536,2]
[352308034,1739035833070,-122.0479867,0.00010536,2]
[352308035,1739035833091,-377.9520133,0.00010536,2]
[352308036,1739035833101,-756.41,0.00010536,2]
[352308037,1739035833112,-500.0,0.00010536,2]
[352308038,1739035833122,-854.04,0.00010536,2]
[352308039,1739035833131,-500.0,0.00010536,2]
[352308040,1739035833141,-531.5,0.00010536,2]
[352308041,1739035833150,-500.0,0.00010536,2]
[352308042,1739035833160,-500.0,0.00010536,2]
[352308043,1739035833169,-500.0,0.00010536,2]
[352308044,1739035833179,-500.0,0.00010536,2]
[352308045,1739035833188,-1024.29,0.00010536,2]
[352308046,1739035833198,-793.04,0.00010536,2]
[352308047,1739035833208,-500.0,0.00010536,2]
[352308048,1739035833217,-1042.96,0.00010536,2]
[352308049,1739035833229,-834.05,0.00010536,2]
[352308050,1739035833238,-500.0,0.00010536,2]
[352308051,1739035833248,-500.0,0.00010536,2]
[352308052,1739035833258,-280.91228201,0.00010536,2]
[352308053,1739035833267,-500.0,0.00010536,2]
[352308054,1739035833276,-500.0,0.00010536,2]
[352308055,1739035833286,-500.0,0.00010536,2]
[352308056,1739035833296,-500.0,0.00010536,2]
[352308057,1739035833306,-643.56,0.00010536,2]
[352308058,1739035833316,-542.45,0.00010536,2]
[352308059,1739035833325,-528.88,0.00010536,2]
[352308060,1739035833335,-500.0,0.00010536,2]
[352308061,1739035833344,-549.74,0.00010536,2]
[352308062,1739035833353,-514.91,0.00010536,2]
[352308063,1739035833363,-737.53,0.00010536,2]
[352308064,1739035833372,-633.97,0.00010536,2]
[352308065,1739035833383,-500.0,0.00010536,2]
[352308066,1739035833392,-500.0,0.00010536,2]
[352308067,1739035833402,-500.0,0.00010536,2]
[352308068,1739035833422,-517.64,0.00010536,2]
[352308069,1739035833432,-500.0,0.00010536,2]
[352308070,1739035833442,-512.52,0.00010536,2]
[352308071,1739035833453,-676.76,0.00010536,2]
[352308072,1739035833463,-500.0,0.00010536,2]
[352308073,1739035833472,-500.0,0.00010536,2]
[352308074,1739035833485,-505.41,0.00010536,2]
[352308075,1739035833495,-500.0,0.00010536,2]
[352308076,1739035833505,-500.0,0.00010537,2]
[352308077,1739035833515,-500.0,0.00010537,2]
[352308078,1739035833525,-150.0,0.00010539,2]
[352308079,1739035833535,-150.0,0.00010539,2]
[352308080,1739035833545,-150.0,0.0001054,2]
[352308081,1739035833555,-150.0,0.00010545,2]
[352308082,1739035833565,-150.0,0.00010549,2]
[352308083,1739035833576,-1000.0,0.00010553,2]
[352308084,1739035833588,-150.0,0.00010556,2]
[352308085,1739035833599,-150.0,0.00010557,2]
[352308086,1739035833610,-150.0,0.00010562,2]
[352308087,1739035833621,-150.0,0.00010562,2]
[352308088,1739035833631,-150.0,0.00010564,2]
[352308089,1739035833642,-927.24378,0.0001057,2]
[352308090,1739035833651,-150.0,0.0001057,2]
[352308091,1739035833662,-150.0,0.00010571,2]
[352308092,1739035833671,-150.0,0.00010575,2]
[352308093,1739035833681,-150.0,0.00010582,2]
[352308094,1739035833691,-150.0,0.00010586,2]
[352308095,1739035833701,-150.0,0.00010587,2]
[352308096,1739035833710,-150.0,0.00010589,2]
[352308097,1739035833720,-150.0,0.0001059,2]
[352308098,1739035833732,-150.0,0.00010594,2]
[352308099,1739035833742,-150.0,0.00010595,2]
[352308100,1739035833752,-174.36,0.00010596,2]
[352308101,1739035833762,-150.0,0.00010598,2]
[352308102,1739035833772,-438.71,0.000106,2]
[352308103,1739035833782,-150.0,0.000106,2]
[352308104,1739035833792,-150.0,0.000106,2]
[352308105,1739035833803,-150.0,0.000106,2]
[352308106,1739035833813,-1000.0,0.00010601,2]
[352308107,1739035833823,-150.0,0.00010604,2]
[352308108,1739035833834,-150.0,0.00010609,2]
[352308109,1739035833844,-150.0,0.00010609,2]
[352308110,1739035833854,-150.0,0.00010614,2]
[352308111,1739035833864,-150.0,0.00010616,2]
[352308112,1739035833874,-150.0,0.0001062,2]
[352308113,1739035833885,-150.0,0.00010625,2]
[352308114,1739035833895,-150.0,0.00010626,2]
[352308115,1739035833905,-150.0,0.0001063,2]
[352308116,1739035833915,-150.0,0.00010631,2]
[352308117,1739035833925,-150.0,0.00010633,2]
[352308118,1739035833935,-150.0,0.00010633,2]
[352308119,1739035833944,-150.0,0.00010638,2]
[352308120,1739035833955,-150.0,0.00010638,2]
[352308121,1739035833967,-150.0,0.00010641,2]
[352308122,1739035833979,-150.0,0.00010643,2]
[352308123,1739035833989,-150.0,0.00010645,2]
[352308124,1739035833999,-150.0,0.00010645,2]
[352308125,1739035834010,-150.0,0.00010646,2]
[352308126,1739035834020,-150.0,0.00010646,2]
[352308127,1739035834030,-150.0,0.00010647,2]
[352308128,1739035834040,-150.0,0.00010655,2]
[352308129,1739035834050,-150.0,0.00010656,2]
[352308130,1739035834061,-150.0,0.00010657,2]
[352308131,1739035834070,-150.0,0.00010658,2]
[352308132,1739035834079,-904.98348661,0.00010668,2]
[352308133,1739035834089,-150.0,0.00010668,2]
[352308134,1739035834100,-150.0,0.00010668,2]
[352308135,1739035834110,-150.0,0.00010669,2]
[352308136,1739035834120,-500.0,0.00010672,2]
[352308137,1739035834130,-588.86,0.00010672,2]
[352308138,1739035834140,-500.0,0.00010672,2]
[352308139,1739035834150,-792.97,0.00010672,2]
[352308140,1739035834160,-500.0,0.00010672,2]
[352308141,1739035834170,-669.43,0.00010672,2]
[352308142,1739035834186,-471.96395043,0.00010672,2]
[352308143,1739035834196,-500.0,0.00010672,2]
[352308144,1739035834206,-523.0,0.00010672,2]
[352308145,1739035834216,-500.0,0.00010672,2]
[352308146,1739035834226,-500.0,0.00010672,2]
[352308147,1739035834236,-500.0,0.00010672,2]
[352308148,1739035834246,-500.0,0.00010672,2]
[352308149,1739035834260,-718.28,0.00010672,2]
[352308150,1739035834270,-500.0,0.00010672,2]
[352308151,1739035834281,-607.11,0.00010672,2]
[352308152,1739035834292,-500.0,0.00010672,2]
[352308153,1739035834302,-500.0,0.00010672,2]
[352308154,1739035834313,-500.0,0.00010672,2]
[352308155,1739035834323,-688.53,0.00010672,2]
[352308156,1739035834333,-500.0,0.00010672,2]
[352308157,1739035834344,-500.0,0.00010672,2]
[352308158,1739035834355,-500.0,0.00010672,2]
[352308159,1739035834366,-500.0,0.00010672,2]
[352308160,1739035834376,-500.0,0.00010672,2]
[352308161,1739035834386,-500.0,0.00010672,2]
[352308162,1739035834397,-679.49,0.00010672,2]
[352308163,1739035834406,-1331.510633,0.00010672,2]
[352308164,1739035834416,-500.0,0.00010672,2]
[352308165,1739035834427,-500.0,0.00010672,2]
[352308166,1739035834436,-500.0,0.00010672,2]
[352308167,1739035834446,-157.072737,0.00010672,2]
[352308168,1739035834456,-843.23,0.00010672,2]
[352308169,1739035834465,-500.0,0.00010672,2]
[352308170,1739035834475,-500.0,0.00010672,2]
[352308171,1739035834485,-698.55,0.00010672,2]
[352308172,1739035834495,-500.0,0.00010672,2]
[352308173,1739035834505,-500.0,0.00010672,2]
[352308174,1739035834515,-500.0,0.00010672,2]
[352308175,1739035834525,-647.94,0.00010672,2]
[352308176,1739035834534,-1127.699664,0.00010672,2]
[352308177,1739035834544,-500.0,0.00010672,2]
[352308178,1739035834555,-500.0,0.00010672,2]
[352308179,1739035834564,-500.0,0.00010672,2]
[352308180,1739035834575,-577.5800305,0.00010672,2]
[352308181,1739035834584,-743.38,0.00010672,2]
[352308182,1739035834594,-500.0,0.00010672,2]
[352308183,1739035834603,-500.0,0.00010672,2]
[352308184,1739035834613,-500.0,0.00010672,2]
[352308185,1739035834622,-501.42,0.00010672,2]
[352308186,1739035834632,-553.25,0.00010672,2]
[352308187,1739035834642,-500.0,0.00010672,2]
[352308188,1739035834651,-507.71,0.00010672,2]
[352308189,1739035834661,-589.43,0.00010672,2]
[352308190,1739035834671,-618.19,0.00010672,2]
[352308191,1739035834681,-500.0,0.00010672,2]
[352308192,1739035834691,-579.92,0.00010672,2]
[352308193,1739035834701,-500.0,0.00010672,2]
[352308194,1739035834711,-585.26,0.00010672,2]
[352308195,1739035834721,-500.0,0.00010672,2]
[352308196,1739035834732,-500.0,0.00010672,2]
[352308197,1739035834742,-500.0,0.00010672,2]
[352308198,1739035834751,-500.0,0.00010672,2]
[352308199,1739035834761,-500.0,0.00010672,2]
[352308200,1739035834771,-500.0,0.00010672,2]
[352308201,1739035834780,-500.0,0.00010672,2]
[352308202,1739035834790,-607.57,0.00010672,2]
[352308203,1739035834799,-537.36,0.00010672,2]
[352308204,1739035834809,-600.12,0.00010672,2]
[352308205,1739035834818,-580.41,0.00010672,2]
[352308206,1739035834828,-806.53,0.00010672,2]
[352308207,1739035834837,-627.2,0.00010672,2]
[352308208,1739035834847,-650.96,0.00010672,2]
[352308209,1739035834857,-501.12,0.00010672,2]
[352308210,1739035834867,-1143.34,0.00010672,2]
[352308211,1739035834876,-1089.47,0.00010672,2]
[352308212,1739035834886,-878.84,0.00010672,2]
[352308213,1739035834895,-645.49,0.00010672,2]
[352308214,1739035834905,-441.00229315,0.00010672,2]
[352308215,1739035834964,-123.17770685,0.00010672,2]
[352308216,1739035834978,-500.0,0.00010672,2]
[352308217,1739035834988,-133.94024565,0.00010672,2]
[352308218,1739035834999,-366.05975435,0.00010672,2]
[352308219,1739035835009,-500.0,0.00010672,2]
[352308220,1739035835019,-703.31,0.00010672,2]
[352308221,1739035835029,-500.0,0.00010672,2]
[352308222,1739035835038,-821.4901493,0.00010672,2]
[352308223,1739035835050,-744.8498507,0.00010672,2]
[352308224,1739035835059,-668.26,0.00010672,2]
[352308225,1739035835068,-500.0,0.00010672,2]
[352308226,1739035835078,-1026.63,0.00010672,2]
[352308227,1739035835087,-76.34571921,0.00010672,2]
[352308228,1739035835110,-783.13428079,0.00010672,2]
[352308229,1739035835119,-755.22,0.00010672,2]
[352308230,1739035835128,-447.60133631,0.00010672,2]
[352308231,1739035835139,-52.39866369,0.00010672,2]
[352308232,1739035835149,-553.66,0.00010672,2]
[352308233,1739035835158,-132.3895605,0.00010672,2]
[352308234,1739035835169,-367.6104395,0.00010672,2]
[352308235,1739035835179,-1375.03,0.00010672,2]
[352308236,1739035835189,-806.22,0.00010672,2]
[352308237,1739035835199,-750.53,0.00010672,2]
[352308238,1739035835208,-500.0,0.00010672,2]
[352308239,1739035835218,-1563.31,0.00010672,2]
[352308240,1739035835229,-688.0,0.00010672,2]
[352308241,1739035835239,-734.09,0.00010672,2]
[352308242,1739035835248,-1146.62,0.00010672,2]
[352308243,1739035835257,-500.0,0.00010672,2]
[352308244,1739035835266,-1196.43,0.00010672,2]
[352308245,1739035835275,-1610.89,0.00010672,2]
[352308246,1739035835285,-532.22,0.00010672,2]
[352308247,1739035835294,-1204.63,0.00010672,2]
[352308248,1739035835303,-500.0,0.00010672,2]
[352308249,1739035835313,-642.25,0.00010672,2]
[352308250,1739035835322,-1316.57,0.00010672,2]
[352308251,1739035835331,-1107.31,0.00010672,2]
[352308252,1739035835340,-500.0,0.00010672,2]